Cogmind - Beta 13 @@@ ROGUE MODE // 2024.02.28 @ 14:50:40 Player: Minty Result: Destroyed by P-60 Hacker with Shock Rifle Performance ------------- Evolutions (3) 1500 Regions Visited (6) 1200 Robots Destroyed (84) 420 Value Destroyed (2813) 2813 Prototype IDs (15) 300 Alien Tech Used (0) 0 Bonus (201) 201 TOTAL SCORE: 6434 Bonus ------- High Alert Combat Kills 73 Entered Garrisons 200 Friendly Fire -72 Cogmind --------- Core Integrity 0/700 Matter 95/300 Energy 100/100 System Corruption 22% Temperature Cool (48) Movement Hovering (138) Ox1 Location -7/Factory Parts ------- > --- POWER (1) -------- Backup Power I > --- PROPULSION (4) --- Backup Propulsion I Backup Propulsion I Improved Hover Unit > --- UTILITY (4) ------ Coolant Injector Advanced Visual Processing Unit Seismic Detector Hacking Suite > --- WEAPON (4) ------- Gauss Rifle Flak Gun Flak Gun Heavy Rocket Launcher > --- INVENTORY (5) ---- Micro Nuclear Core Improved Signal Interpreter Shock Absorption System Lightning Gun Heavy Assault Rifle Peak State ------------ > --- POWER ------------ Light Nuclear Core > --- PROPULSION ------- Aerolev Unit Gravmag System VTOL Module > --- UTILITY ---------- Medium Storage Unit Terrain Scan Processor Hacking Suite Hacking Suite > --- WEAPON ----------- Gatling Laser EM Pulse Cannon Autogun Flak Gun > --- INVENTORY -------- Micro Nuclear Core VTOL Module Improved Heat Sink Improved Signal Interpreter ECM Suite Relay Coupler [Swarmer] Relay Coupler [Grunt] Relay Coupler [Grunt] Relay Coupler [Sentry] Relay Coupler [Specialist] [Rating: 38] Favorites ----------- Power Ion Engine Engine Ion Engine Power Core Light Nuclear Core Propulsion Subdweller Monowheel Treads Light Treads Leg Aluminum Leg Wheel Subdweller Monowheel Hover Unit Aerolev Unit Flight Unit VTOL Module Utility Medium Storage Unit Device Disposable Heat Sink Storage Medium Storage Unit Processor Advanced Targeting Computer Hackware Hacking Suite Protection Utility Shielding Weapon Subdweller Beam Cannon Energy Gun EM Pulse Gun Energy Cannon Subdweller Beam Cannon Ballistic Gun Flak Gun Ballistic Cannon Slug Cannon Launcher Subdweller Shrapnel Launcher Special Weapon Mining Laser Special Melee Weapon Dirty Datajack Build | -11 -10 -10 -8 -7 -7 -7 ------- Run | Yrd Mat Sub Mat Fac Gar Fac Slots Evolved 6 | . . . 4 2 . . Power . | . . . . . . . Propulsion 2 | . . . 1 1 . . Utility 2 | . . . 1 1 . . Weapon 2 | . . . 2 . . . Parts Attached 164 | . 13 32 54 37 13 15 Power 14 | . 1 . 6 6 1 . Engine 5 | . 1 . 4 . . . Core 9 | . . . 2 6 1 . Reactor . | . . . . . . . Propulsion 45 | . 1 12 11 13 6 2 Treads 2 | . . . . 2 . . Leg 13 | . 1 3 1 8 . . Wheel 13 | . . 9 4 . . . Hover 9 | . . . 4 3 . 2 Flight 8 | . . . 2 . 6 . Utility 38 | . 4 3 17 5 4 5 Device 18 | . 1 3 6 2 2 4 Storage 5 | . 2 . 3 . . . Processor 8 | . . . 6 1 . 1 Hackware 2 | . . . . 1 1 . Protection 5 | . 1 . 2 1 1 . Artifact . | . . . . . . . Weapon 67 | . 7 17 20 13 2 8 Energy Gun 25 | . 2 3 9 8 1 2 Energy Cannon 10 | . . 7 2 1 . . Ballistic Gun 18 | . 2 1 5 4 1 5 Ballistic Cannon 3 | . . 1 2 . . . Launcher 5 | . 2 2 . . . 1 Special Weapon 4 | . 1 3 . . . . Impact Weapon . | . . . . . . . Slashing Weapon . | . . . . . . . Piercing Weapon . | . . . . . . . Special Melee Weapon 2 | . . . 2 . . . Unidentified Prototypes 5 | . . . 5 . . . Corrupted Parts 4 | . . . . 2 2 . System Corruption 9 | . . . . 5 4 . Parts Lost 40 | . 1 4 9 14 12 . Power 6 | . . . 2 2 2 . Propulsion 18 | . . 3 5 4 6 . Utility 7 | . . 1 1 1 4 . Weapon 9 | . 1 . 1 7 . . Highest Loss Streak 9 | . 1 1 3 6 9 . To Critical Strikes . | . . . . . . . Average Slot Usage (%) 86 | . 94 91 69 75 64 68 Engine 11 | . 14 14 4 . . 4 Leg 7 | . 28 5 1 15 . . Wheel 10 | . . 15 8 . . . Hover 2 | . . . 7 1 9 15 Device 9 | . . 12 4 5 2 14 Storage 13 | . 20 15 7 7 5 . Processor 2 | . . . 11 4 4 4 Energy Gun 4 | . 11 2 6 13 2 4 Energy Cannon 13 | . . 20 1 . 4 . Ballistic Gun 3 | . 9 . 4 6 8 12 Ballistic Cannon 3 | . . 3 5 . . . Naked Turns . | . . . . . . . Heaviest Build 45 | 13 19 32 45 29 32 22 Greatest Support 56 | 20 20 40 36 56 26 19 Greatest Overweight (x) 10 | . . 10 4 2 7 1 Average Overweight (x) 1 | . . 3 . . . . Largest Inventory Capacity 10 | . 10 10 10 10 10 5 Average Capacity 9 | . 9 10 8 10 9 5 Most Carried 10 | . 10 10 10 10 10 5 Average Carried 9 | . 8 9 8 9 8 4 Final Capacity 10 | 8 10 10 10 10 5 5 Final Carried 10 | 6 10 10 10 10 4 5 Class Distribution -------------------- 80% | Mutant 7% | Skirmisher 6% | Scavenger-Mutant Dominant Class ---------------- Mutant | -10/Materials Mutant | -10/Subcaves Mutant | -8/Materials Skirmisher | -7/Factory Mutant | -7/Garrison Skirmisher | -7/Factory Resources | -11 -10 -10 -8 -7 -7 -7 ----------- Run | Yrd Mat Sub Mat Fac Gar Fac Matter Collected 2640 | 200 190 542 1037 441 204 26 Remotely . | . . . . . . . Salvage Created 2948 | . 409 658 1091 535 187 68 Parts 157 | . 26 44 45 24 11 7 Haulers Intercepted 4 | . 1 . 3 . . . Recyclers Shooed 1 | . . . . 1 . . Parts Field Recycled . | . . . . . . . Retrieved Matter . | . . . . . . . Parts Self-Destructed 17 | . . 17 . . . . Prevented 3 | . . 3 . . . . Kills | -11 -10 -10 -8 -7 -7 -7 ------- Run | Yrd Mat Sub Mat Fac Gar Fac Combat Hostiles Destroyed 64 | . 12 16 20 10 5 1 Melee 1 | . . . . . 1 . Guns 27 | . 3 6 9 8 . 1 Cannons 21 | . . 9 8 . 4 . AOE 15 | . 9 1 3 2 . . Classes Destroyed 13 | . 6 4 2 1 . . Worker 3 | . 1 . 2 . . . Builder 3 | . 2 . 1 . . . Hauler 4 | . 1 . 3 . . . Recycler 4 | . . . 3 1 . . Watcher 6 | . 3 . 1 . . 2 Swarmer 18 | . 3 5 5 2 3 . Grunt 25 | . 9 1 9 5 . 1 Sentry 8 | . . 1 3 2 2 . Hunter 3 | . . . 3 . . . Programmer 1 | . . . . 1 . . Artisan 3 | . . 3 . . . . Cobbler 1 | . . 1 . . . . Subdweller 9 | . . 9 . . . . Best Kill Streak 7 | . 7 3 4 4 2 2 Combat Bots Only 6 | . 6 3 3 3 2 1 Max Kills in Single Turn 4 | . 4 2 2 2 1 2 Gunslinging 1 | . . 1 . . . . Exploded 4 | . 4 1 1 2 . . Melee 1 | . . . . . 1 . Uniques/NPCs Destroyed . | . . . . . . . Combat | -11 -10 -10 -8 -7 -7 -7 -------- Run | Yrd Mat Sub Mat Fac Gar Fac Hostile Shots Fired 677 | . 65 41 137 270 162 2 Missed 257 | . 23 14 48 108 64 . Damage Taken 5342 | . 549 525 1457 1749 1028 34 Core 1321 | . 106 138 372 261 410 34 Absorbed by Shields 75 | . . . . . 75 . Redirected to Shielding 152 | . 5 . 81 46 20 . Regen/Repaired (Parts) 115 | . . . 115 . . . Core Remaining (%) 44 | 100 . 2 32 . . . Volleys Fired 272 | . 48 74 99 40 9 2 Largest 4 | . 2 2 4 4 4 4 Hottest 218 | . 100 160 218 194 194 123 Shots Fired 475 | . 78 127 151 85 26 8 Gun 289 | . 51 35 94 85 17 7 Cannon 128 | . . 66 53 . 9 . Launcher 25 | . 13 7 4 . . 1 Special 33 | . 14 19 . . . . Kinetic 213 | . 36 22 92 43 15 5 Thermal 179 | . 28 88 52 8 2 1 Explosive 14 | . 13 . . . . 1 Electromagnetic 69 | . 1 17 7 34 9 1 Robot Hit Streak 16 | . 6 12 6 16 11 2 Robot Miss Streak 5 | . 4 3 5 3 3 2 Penetration Max 1 | . . . 1 . . . Secondary Targets 6 | . . 2 . 4 . . Max Gunslinging Chain 1 | . . 1 . 1 . . Shots Hit Robots 272 | . 34 58 102 59 15 4 Core Hits 150 | . 28 28 44 27 17 6 Critical Kills 2 | . . 1 1 . . . Critical Parts Destroyed 5 | . . . 3 1 1 . Critical Strikes 14 | . . 3 7 2 2 . Burn 5 | . . 2 3 . . . Meltdown 1 | . . 1 . . . . Destroy 6 | . . . 4 1 1 . Corrupt 2 | . . . . 1 1 . Melee Attacks 7 | . . . 7 . . . Impact . | . . . . . . . Slashing . | . . . . . . . Piercing 7 | . . . 7 . . . Sneak Attacks . | . . . . . . . Combat Hostiles . | . . . . . . . Follow-up Attacks . | . . . . . . . Damage Inflicted 6901 | . 1179 1541 2417 1115 470 179 Guns 3079 | . 336 285 1188 969 219 82 Cannons 1906 | . . 824 900 . 182 . Explosions 1740 | . 843 432 249 119 . 97 Melee 5 | . . . 5 . . . Ramming 171 | . . . 75 27 69 . Kinetic 3224 | . 236 596 1547 610 189 46 Thermal 1916 | . 80 818 681 219 30 88 Explosive 852 | . 843 . . . . 9 Electromagnetic 733 | . 20 127 109 259 182 36 Impact . | . . . . . . . Slashing . | . . . . . . . Piercing 5 | . . . 5 . . . Highest Corruption 23 | . . . 2 7 23 23 Average Corruption 8 | . . . 1 5 11 21 Corruption Purged 3 | . . . . . . 3 Corruption Blocked . | . . . . . . . Effects 52 | . . . 11 10 11 20 Message Errors 11 | . . . 2 2 1 6 Matter Fused 12 | . . . 4 3 3 2 Heat Flow Errors 4 | . . . 1 1 1 1 Energy Discharges 6 | . . . 1 . 3 2 Parts Rejected 2 | . . . 1 . . 1 Parts Fused 1 | . . . . 1 . . Data Loss (minor) 6 | . . . . 2 1 3 Data Loss (major) 1 | . . . . . . 1 Misfires 4 | . . . 1 1 . 2 Misdirections 2 | . . . . . 1 1 Weapon Failures 3 | . . . 1 . 1 1 Overload Shots . | . . . . . . . Overflow Damage 196 | . 25 49 29 27 . 66 Projectiles 29 | . . 16 13 . . . Explosions 167 | . 25 33 16 27 . 66 Melee . | . . . . . . . Knockbacks 8 | . . 2 6 . . . Impact . | . . . . . . . Kinetic 8 | . . 2 6 . . . Secondary . | . . . . . . . Self-Inflicted Damage 415 | . 113 117 72 56 57 . Shots 10 | . 4 3 2 1 . . Rammed 17 | . . . 15 . 2 . Targets Rammed 24 | . . . 15 7 2 . Kicked 7 | . . . . 7 . . Crushed . | . . . . . . . Highest Temperature 333 | . 120 187 323 333 213 164 Average Temperature 75 | . 31 48 99 95 83 67 Received Heat Transfer 1423 | . 195 69 486 474 190 9 Effects 2 | . . . 2 . . . Interference 2 | . . . 2 . . . Siege Activations . | . . . . . . . Robots Corrupted . | . . . . . . . Combat Hostiles . | . . . . . . . Parts Fried 3 | . 3 . . . . . Impact Corruptions . | . . . . . . . Robots Melted 1 | . . 1 . . . . Combat Hostiles 1 | . . 1 . . . . Parts Melted 6 | . . 3 3 . . . Heat Transferred 3508 | . 175 1406 1517 285 75 50 Parts Sabotaged . | . . . . . . . Parts Stolen . | . . . . . . . Parts Stripped . | . . . . . . . Power Chain Reactions 1 | . . . . 1 . . Alert | -11 -10 -10 -8 -7 -7 -7 ------- Run | Yrd Mat Sub Mat Fac Gar Fac Peak Influence 558 | . 558 . 530 400 386 385 Initial 231 | . . . . 231 196 197 Average 282 | . 308 . 279 275 283 242 Maximum Alert Level 2 | . 2 . 2 2 1 1 Low Security (%) 20 | . 20 . 23 11 7 25 Level 1 68 | . 63 . 57 87 92 74 Level 2 11 | . 15 . 18 1 . . Level 3 . | . . . . . . . Level 4 . | . . . . . . . Level 5 . | . . . . . . . High Security . | . . . . . . . Max Security . | . . . . . . . Squads Dispatched 16 | . 3 . 5 6 . 2 Investigation 4 | . 1 . 2 . . 1 Extermination 3 | . . . . 2 . 1 Reinforcement 7 | . 2 . 3 2 . . Assault . | . . . . . . . Garrison 2 | . . . . 2 . . Intercept . | . . . . . . . Searches Triggered . | . . . . . . . Construction Impeded 1 | . . . 1 . . . Haulers Reinforced . | . . . . . . . Active Scanning Responses . | . . . . . . . Cargo Convoy Interrupts . | . . . . . . . Stealth | -11 -10 -10 -8 -7 -7 -7 --------- Run | Yrd Mat Sub Mat Fac Gar Fac Distress Signals 5 | . 1 . 3 . . 1 Communications Jammed . | . . . . . . . Distress Signals . | . . . . . . . Times Spotted 116 | . 22 16 38 14 16 10 Peak Tracking Total 9 | . 7 3 5 6 9 5 Tactical Retreats 10 | . 1 . 4 2 3 . Traps | -11 -10 -10 -8 -7 -7 -7 ------- Run | Yrd Mat Sub Mat Fac Gar Fac Traps Triggered 4 | . . . 1 . 2 1 Indirectly . | . . . . . . . Trap Hack Attempts . | . . . . . . . Triggered . | . . . . . . . Disarmed . | . . . . . . . Reprogrammed 4 | . 4 . . . . . Reused 5 | . 3 . 2 . . . Traps Extracted . | . . . . . . . Installed 2 | . . . 2 . . . Triggered 5 | . 3 . 2 . . . Most Traps Carried 2 | . . 2 2 . . . Machines | -11 -10 -10 -8 -7 -7 -7 ---------- Run | Yrd Mat Sub Mat Fac Gar Fac Machines Disabled 15 | . 3 2 5 . 1 4 Max in Single Turn 4 | . 2 1 1 . 1 4 Garrison Access 1 | . . . 1 . . . Garrison Relay 2 | . . . . . 2 . Machines Repaired . | . . . . . . . Machines Dismantled . | . . . . . . . Machines Sabotaged . | . . . . . . . Overloaded Fab Kills . | . . . . . . . Hacking | -11 -10 -10 -8 -7 -7 -7 --------- Run | Yrd Mat Sub Mat Fac Gar Fac Machines Accessed 17 | . 3 1 7 2 1 3 Terminals 8 | . 2 . 4 1 1 . Fabricators 1 | . . . . . . 1 Repair Stations 2 | . . . 1 . . 1 Recycling Units 2 | . 1 . . . . 1 Scanalyzers 1 | . . . 1 . . . Garrison Access 2 | . . . 1 1 . . Total Hacks 69 | . 9 9 32 9 2 8 Successful 41 | . 6 9 16 6 1 3 Failed 28 | . 3 . 16 3 1 5 Catastrophic 4 | . 1 . 2 1 . . Database Lockouts . | . . . . . . . Manual 27 | . 3 . 16 7 1 . Terminals 31 | . 7 . 19 3 2 . Fabricators 2 | . . . . . . 2 Repair Stations 8 | . . . 4 . . 4 Recycling Units 4 | . 2 . . . . 2 Scanalyzers 6 | . . . 6 . . . Garrison Access 9 | . . . 3 6 . . Terminal Hacks 17 | . 3 9 5 . . . Record 8 | . . 8 . . . . Recycling Unit Index 1 | . . . 1 . . . Locate Traps 2 | . 1 . 1 . . . Reprogram Traps 1 | . 1 . . . . . Dispatch Records 1 | . . . 1 . . . Transport Status 1 | . . . 1 . . . Recall Reinforcements 1 | . . . 1 . . . Zone Layout 1 | . 1 . . . . . Derelict Proto ID Bank 1 | . . 1 . . . . Fabricator Hacks . | . . . . . . . Repair Station Hacks 3 | . . . 2 . . 1 Scan Component 1 | . . . 1 . . . Repair 1 | . . . 1 . . . Refit 1 | . . . . . . 1 Recycling Unit Hacks 4 | . 2 . . . . 2 Report Inventory 2 | . 1 . . . . 1 Retrieve Components 2 | . 1 . . . . 1 Scanalyzer 6 | . . . 6 . . . Insert Component 3 | . . . 3 . . . Analyze 3 | . . . 3 . . . Garrison Access Hacks 2 | . . . 1 1 . . Unlock Access 1 | . . . . 1 . . Seal Access 1 | . . . 1 . . . Unauthorized Hacks 9 | . 1 . 2 5 1 . Terminals 5 | . 1 . 2 1 1 . Botnet 4 | . 1 . 2 1 . . Override 1 | . . . . . 1 . Fabricators . | . . . . . . . Repair Stations . | . . . . . . . Recycling Units . | . . . . . . . Scanalyzers . | . . . . . . . Garrison Access 4 | . . . . 4 . . Broadcast 1 | . . . . 1 . . Redirect 1 | . . . . 1 . . Intercept 1 | . . . . 1 . . Watchers 1 | . . . . 1 . . Data Cores Recovered . | . . . . . . . Used . | . . . . . . . Hacking Detections 14 | . 2 . 7 2 . 3 Full Trace Events 4 | . 1 . 2 . . 1 Feedback Events . | . . . . . . . Feedback Blocked . | . . . . . . . Robot Schematics Acquired . | . . . . . . . Robots Built . | . . . . . . . Authchips . | . . . . . . . Time . | . . . . . . . Total Robot Build Rating . | . . . . . . . Part Schematics Acquired 2 | . . . 2 . . . Parts Built . | . . . . . . . Authchips . | . . . . . . . Time . | . . . . . . . Total Part Build Rating . | . . . . . . . Parts Repaired 1 | . . . 1 . . . Time 44 | . . . 44 . . . Parts Recycled . | . . . . . . . Recycled Matter . | . . . . . . . Retrieved Matter . | . . . . . . . Retrieved Components 4 | . 2 . . . . 2 Parts Scanalyzed 3 | . . . 3 . . . Part Schematics Acquired 2 | . . . 2 . . . Parts Damaged . | . . . . . . . Bothacking | -11 -10 -10 -8 -7 -7 -7 ------------ Run | Yrd Mat Sub Mat Fac Gar Fac Used RIF Installer . | . . . . . . . Robots Hacked . | . . . . . . . Non-combat . | . . . . . . . Combat . | . . . . . . . Robot Hacks Applied . | . . . . . . . Relay Couplers Released 10 | . . . . . 10 . Machine Destruction 10 | . . . . . 10 . Fabnet Peak Effective % . | . . . . . . . Robots Rewired . | . . . . . . . Allies Hacked . | . . . . . . . Hacks Repelled . | . . . . . . . Allies | -11 -10 -10 -8 -7 -7 -7 -------- Run | Yrd Mat Sub Mat Fac Gar Fac Total Allies 1 | . . . 1 . . . Largest Group 1 | . . . 1 . . . Highest-Rated Group 21 | . . . 21 . . . Highest-Rated Ally 21 | . . . 21 . . . Total Orders . | . . . . . . . Ally Attacks 3 | . . . 3 . . . Total Damage 43 | . . . 43 . . . Kills . | . . . . . . . Allies Corrupted . | . . . . . . . Allies Melted . | . . . . . . . Intel | -11 -10 -10 -8 -7 -7 -7 ------- Run | Yrd Mat Sub Mat Fac Gar Fac Robot Analysis Total . | . . . . . . . Derelict Logs Recovered 2 | . . 2 . . . . Drone Launches . | . . . . . . . Drone Recoveries . | . . . . . . . Exploration | -11 -10 -10 -8 -7 -7 -7 ------------- Run | Yrd Mat Sub Mat Fac Gar Fac Turns Passed 8381 | . 876 5191 1172 570 209 363 Spaces Moved 4207 | 1 397 2029 857 285 215 423 Core 645 | . . 419 1 . 45 180 Treads 7 | . . . . 7 . . Legs 1022 | 1 397 403 . 221 . . Wheels 1593 | . . 1207 386 . . . Hover 825 | . . . 470 57 55 243 Flight 115 | . . . . . 115 . Fastest Speed 26 | 120 120 80 50 48 26 50 Average Speed 160 | 120 120 240 78 126 56 63 Slowest Speed 595 | 120 120 550 290 240 595 156 Overloaded Moves . | . . . . . . . Propulsion Burnouts . | . . . . . . . Robots Hopped 1 | . . . . . 1 . Cave-ins Triggered . | . . . . . . . Exploration Rate (%) 33 | 2 55 78 52 7 28 12 Regions Visited 6 Branch Regions 1 Pre-discovered Areas 1 | . . 1 . . . . Known Exits Taken 1 | . . . . 1 . . Unknown Exits Taken 4 | 1 1 1 1 . . . Scrap Searched 16 | . . 16 . . . . Spaces Dug 11 | . . 2 9 . . . Terrain Destroyed 257 | . 72 74 77 3 . 31 Melee . | . . . . . . . Projectile 29 | . 5 7 17 . . . AOE 228 | . 67 67 60 3 . 31 Terrain Rammed 1 | . . . . . 1 . Walls Destroyed . | . . . . . . . Machines Disabled 1 | . . . . . 1 . Actions | -11 -10 -10 -8 -7 -7 -7 --------- Run | Yrd Mat Sub Mat Fac Gar Fac Total 5343 | . 694 2191 1242 422 283 511 Wait 461 | . 217 12 142 28 9 53 Move 4199 | . 396 2028 857 284 211 423 Hop 1 | . . . . . 1 . Pick Up 58 | . 8 15 17 8 5 5 Fast Attach 84 | . 5 12 27 21 6 13 Attach 38 | . . 5 18 8 5 2 Detach 36 | . 3 2 20 4 4 3 Swap 45 | . 8 15 9 8 2 3 Drop 98 | . 9 28 30 14 10 7 Fire 272 | . 48 74 99 40 9 2 Melee 7 | . . . 7 . . . Ram 17 | . . . 14 . 3 . Kick 7 | . . . . 7 . . Crush . | . . . . . . . Escape Stasis 18 | . . . . . 18 . Rewire . | . . . . . . . Trap 2 | . . . 2 . . . Miscellaneous . | . . . . . . . Route ------- -11/Scrapyard -10/Materials (discovered 2 exits: [*Mat] / *Sub) -10/Subcaves -8/Materials -7/Factory -7/Garrison (discovered 3 exits: *Fac x3) -7/Factory History --------- Turn | Location | Event 1 | -11/Scrapyard | Discovered new exit (range 0) 1 | -11/Scrapyard | Entered Materials 313 | -10/Materials | Discovered new exit (range 4) 322 | -10/Materials | Build established: Mutant 865 | -10/Materials | Discovered new exit (range 11) 877 | -10/Materials | Entered Subcaves 1184 | -10/Subcaves | Core integrity fell below 50% 1269 | -10/Subcaves | Shifting Twisted Machinery released Sub. Machine Gun 1303 | -10/Subcaves | Shifting Twisted Machinery released Shrapnel Trap 1402 | -10/Subcaves | Disturbed a concealed Subdweller 1620 | -10/Subcaves | Disturbed a concealed Subdweller 1793 | -10/Subcaves | Learned Materials terminal intel 1933 | -10/Subcaves | A swath of the cavern ceiling suddenly collapsed 3263 | -10/Subcaves | Discovered new exit (range 4) 5532 | -10/Subcaves | Visited 4L-MR0's lab 5588 | -10/Subcaves | Found Power Bank 5923 | -10/Subcaves | Ambushed by Subdwellers from Twisted Machinery 5925 | -10/Subcaves | Core integrity fell below 20% 6068 | -10/Subcaves | Entered Materials 6068 | -8/Materials | Evolved 4 slots: Propulsion x1, Utility x1, Weapon x2 6069 | -8/Materials | Loaded intel: 12 terminal locations 6069 | -8/Materials | Attached Power Bank, gained temporary slots: Power x3 6498 | -8/Materials | Lost 3 parts (1n1u1w) 6680 | -8/Materials | Core integrity fell below 50% 7102 | -8/Materials | Repaired Hvy. Battle Rifle 7233 | -8/Materials | Discovered new exit (range 13) 7240 | -8/Materials | Entered Factory 7240 | -7/Factory | Evolved 2 slots: Propulsion x1, Utility x1 7490 | -7/Factory | Identified exit to Garrison 7544 | -7/Factory | Build established: Skirmisher 7622 | -7/Factory | Garrison activated, responded to threat 7635 | -7/Factory | Lost 6 parts (1p2n3w) 7740 | -7/Factory | Lost 6 parts (1p2n3w) 7810 | -7/Factory | Entered Garrison 7826 | -7/Garrison | Triggered checkpoint 7884 | -7/Garrison | Triggered checkpoint 7885 | -7/Garrison | Garrison Relay disabled 7940 | -7/Garrison | System corruption reached 10% 7974 | -7/Garrison | Core integrity fell below 50% 7978 | -7/Garrison | Garrison Relay disabled 7990 | -7/Garrison | Triggered checkpoint 7998 | -7/Garrison | Core integrity fell below 20% 8001 | -7/Garrison | Identified exit to Factory 8019 | -7/Garrison | Entered Factory 8040 | -7/Factory | Lost 9 parts (1p5n3u) 8382 | -7/Factory | Destroyed by P-60 Hacker with Shock Rifle Last Messages --------------- 08269_ ALERT: Rogue bot located, Programmers report to Factory Zone 8B. 08272_ Triggered Shock Trap. 08272_ The floor emits a surge of raw power. 08272_ System corrupted (+2). 08285_ System corrupted: Component data lost. 08300_ System corrupted: FCS attempts to trigger Backup Laser I. 08300_ System corrupted: Backup Laser I misfires. 08309_ Dropped Backup Laser I. 08310_ Acquired Gauss Rifle. 08342_ System corrupted: Matter fused (-5). 08357_ V8,W=OLJ81OQZRCMHODCRXUURC%AW0|U6/GR4 08374_ System corrupted: FCS attempts to trigger Flak Gun. 08374_ System corrupted: Flak Gun misfires. 08377_ W-25 Informer sends out distress signal. 08379_ G-47 Trooper destroyed. 08379_ Fusion Modulator explodes. 08379_ Destroyed Imp. Sensor Array. 08379_ Destroyed Imp. Hover Unit. 08379_ W-25 Informer destroyed. 08379_ Fusion Modulator explodes. Map ----- +----------------------------------------------------+ | ?????????????# #???????????? | | ?????????????# #??"????????? | | ?????????????# #?"?????????? | | ?????????????# #?"?????????? | | ?????????????# # ??????????? | | #????????????# # ??????????? | | #????????????# /???????????? | | #????????????# ##########??? | | #????????????# # #??? | | #????????????# # ???? | | #????????????# # *???? | | #????????????# # ! ????? | | #????????????# # !?????? | | #????????????+ + ??????? | | #????????????# # ??????? | | #????????????# # ???????? | | ############## # ????????? | | ##+###??????? | | #??????? | | #??????? | | #??????? | | p #### #??????? | | #+##########;; ;;##+###????? | | # """"" #????? | | # ""T"" g #????? | | # g @#????? | | # [#????? | | # #????? | | # #????? | | # """""" #????? | | # """""" ! #????? | | # """""" ; #????? | | # """""? ; #????? | | # ??? ; #????? | | ? ?????? # ! #????? | | ?##???????##?#;;;; ####????? | | ?????????????### ###????????? | | ???????????????#####???????????? | | #??????????????????????????????? | | #??????????????????????????????? | | #??????????????????????????????? | | #?????########?????????????????? | | ####### #?????????????????? | | # # #?????????????????? | | # # !! #?????????????????? | | + + !! #?????????????????? | | # # ! #?????????????????? | | # # #?????????????????? | | ### ###############????????????? | | #?# #####??#?????? | +----------------------------------------------------+ Best States ------------- Heat Dissipation 56 Coolant Potential 65 Energy Generation 15 Energy Capacity 400 Matter Stores 300 Matter Capacity 450 Sight Range 20 Terrain Scan Range 16 Terrain Scan Density 85 Utility Shielding 33 Weapon Shielding 66 Evasion (%) 64 Targeting Accuracy 13 Recoil Reduction 2 Offensive Hacking 20 Item Schematics ----------------- Hvy. Battle Rifle | -8/Materials | Scanalyzed Cesium-ion Thruster | -8/Materials | Scanalyzed Robot Schematics ------------------ None Fabricated ------------ Nothing Alien Tech Used ----------------- None Achievements -------------- None Challenges ------------ None Game ------ Seed AluminumIonicPerforator Manual? 0 Play Time 00:40:34 Cumulative 680.3 hours Start 2024.02.28 @ 14:12:33 End 2024.02.28 @ 14:50:40 Sessions 1 Manual Loads 0 Difficulty Rogue Special Mode None Game No. 698 Rogue 423 Adventurer 123 Explorer 152 Win Type - Total 25 Types 19/0/4/1/0/0/0/1/0 Lore% 80 Gallery% 91 Achievement% 76 Wizard Run 0 Options --------- Layout 0 ASCII 0 Keyboard 1 Movement Numpad Keybinds 0 Fullscreen 2 Font 18/SmallcapsGlow Map View 76x50 Zoom Use 0% Tactical HUD 1 Map Filters NONE Filters NONE Steam 1 RUN: 803326f8-f11c-4e14-aee4-2203ba4aa4dd